Cogmind - Beta 12 @@@ ROGUE MODE // 2023.03.08 @ 11:19:15 Player: Wayland Result: Self-destructed Performance ------------- Evolutions (1) 500 Regions Visited (2) 400 Robots Destroyed (0) 0 Value Destroyed (10) 10 Prototype IDs (0) 0 Alien Tech Used (0) 0 Bonus (200) 200 TOTAL SCORE: 1110 Bonus ------- Pacifist 200 Cogmind --------- Core Integrity 53/400 Matter 244/300 Energy 100/100 System Corruption 0% Temperature Cool (0) Movement Core (100) Ox1 Location -9/Materials Parts ------- > --- POWER (1) -------- (None) > --- PROPULSION (3) --- (None) > --- UTILITY (3) ------ Small Storage Unit > --- WEAPON (2) ------- (None) > --- INVENTORY (8) ---- Aluminum Leg Improved Hover Unit Improved Hover Unit EM Pulse Gun Particle Gun Grenade Launcher Peak State ------------ > --- POWER ------------ Ion Engine > --- PROPULSION ------- Flight Unit Flight Unit Flight Unit > --- UTILITY ---------- Small Storage Unit > --- WEAPON ----------- Particle Gun > --- INVENTORY -------- Aluminum Leg Aluminum Leg Wheel Wheel Improved Hover Unit Improved Hover Unit Improved Hover Unit EM Pulse Gun [Rating: 8] Favorites ----------- Power Ion Engine Engine Ion Engine Propulsion Flight Unit Leg Aluminum Leg Wheel Wheel Hover Unit Improved Hover Unit Flight Unit Flight Unit Utility Small Storage Unit Storage Small Storage Unit Processor Targeting Computer Weapon EM Pulse Gun Energy Gun EM Pulse Gun Build | -11 -10 -9 ------- Run | Jun Mat Mat Slots Evolved 2 | . . 2 Power . | . . . Propulsion 1 | . . 1 Utility 1 | . . 1 Weapon . | . . . Parts Attached 13 | . 3 10 Power 2 | . 1 1 Engine 2 | . 1 1 Core . | . . . Reactor . | . . . Propulsion 9 | . 2 7 Treads . | . . . Leg . | . . . Wheel 2 | . 2 . Hover 3 | . . 3 Flight 4 | . . 4 Utility 1 | . . 1 Device . | . . . Storage . | . . . Processor 1 | . . 1 Hackware . | . . . Protection . | . . . Artifact . | . . . Weapon 1 | . . 1 Energy Gun 1 | . . 1 Energy Cannon . | . . . Ballistic Gun . | . . . Ballistic Cannon . | . . . Launcher . | . . . Special Weapon . | . . . Impact Weapon . | . . . Slashing Weapon . | . . . Piercing Weapon . | . . . Special Melee Weapon . | . . . Unidentified Prototypes . | . . . Parts Lost 10 | . 3 7 Power 2 | . 1 1 Propulsion 5 | . . 5 Utility 1 | . . 1 Weapon 2 | . 2 . Highest Loss Streak 7 | . 2 7 To Critical Strikes . | . . . Average Slot Usage (%) 55 | . 81 42 Engine 8 | . 14 5 Wheel 9 | . 28 . Hover 1 | . . 1 Flight 15 | . . 23 Storage 11 | . 14 11 Processor 1 | . . 1 Energy Gun 8 | . 24 . Naked Turns . | . . . Heaviest Build 14 | 12 14 13 Greatest Support 20 | 20 20 14 Greatest Overweight (x) 1 | . . 1 Average Overweight (x) . | . . . Largest Inventory Capacity 8 | . 8 8 Average Capacity 8 | . 8 8 Most Carried 8 | . 8 8 Average Carried 7 | . 6 7 Final Capacity 8 | 8 8 8 Final Carried 8 | 6 8 6 Class Distribution -------------------- 100% | Mutant Dominant Class ---------------- Mutant | -10/Materials Mutant | -9/Materials Resources | -11 -10 -9 ----------- Run | Jun Mat Mat Matter Collected 225 | 190 35 . Remotely . | . . . Salvage Created . | . . . Parts . | . . . Haulers Intercepted . | . . . Recyclers Shooed . | . . . Parts Field Recycled . | . . . Retrieved Matter . | . . . Parts Self-Destructed . | . . . Prevented . | . . . Kills | -11 -10 -9 ------- Run | Jun Mat Mat Combat Hostiles Destroyed . | . . . Classes Destroyed . | . . . Best Kill Streak . | . . . Combat Bots Only . | . . . Max Kills in Single Turn . | . . . Gunslinging . | . . . Exploded . | . . . Melee . | . . . Uniques/NPCs Destroyed . | . . . Combat | -11 -10 -9 -------- Run | Jun Mat Mat Damage Taken 930 | . 279 651 Core 427 | . 80 347 Absorbed by Shields . | . . . Core Remaining (%) 84 | 100 68 . Volleys Fired 1 | . 1 . Largest 2 | . 2 . Hottest 80 | . 80 . Shots Fired 2 | . 2 . Gun 2 | . 2 . Cannon . | . . . Launcher . | . . . Special . | . . . Kinetic . | . . . Thermal . | . . . Explosive . | . . . Electromagnetic 2 | . 2 . Robot Hit Streak . | . . . Robot Miss Streak . | . . . Penetration Max . | . . . Secondary Targets . | . . . Shots Hit Robots . | . . . Core Hits . | . . . Critical Kills . | . . . Critical Parts Destroyed . | . . . Critical Strikes . | . . . Melee Attacks . | . . . Impact . | . . . Slashing . | . . . Piercing . | . . . Sneak Attacks . | . . . Combat Hostiles . | . . . Follow-up Attacks . | . . . Damage Inflicted 7 | . . 7 Guns . | . . . Cannons . | . . . Explosions . | . . . Melee . | . . . Ramming 7 | . . 7 Kinetic . | . . . Thermal . | . . . Explosive . | . . . Electromagnetic . | . . . Impact . | . . . Slashing . | . . . Piercing . | . . . Highest Corruption 1 | . 1 . Average Corruption 1 | . 1 . Corruption Purged . | . . . Corruption Blocked . | . . . Overload Shots . | . . . Overflow Damage . | . . . Projectiles . | . . . Explosions . | . . . Melee . | . . . Knockbacks . | . . . Impact . | . . . Kinetic . | . . . Secondary . | . . . Self-Inflicted Damage 3 | . . 3 Shots . | . . . Rammed 4 | . . 4 Targets Rammed 4 | . . 4 Kicked . | . . . Crushed . | . . . Highest Temperature 18 | . 18 8 Average Temperature 11 | . 12 8 Received Heat Transfer 213 | . 24 189 Siege Activations . | . . . Robots Corrupted . | . . . Combat Hostiles . | . . . Parts Fried . | . . . Impact Corruptions . | . . . Robots Melted . | . . . Combat Hostiles . | . . . Parts Melted . | . . . Heat Transferred . | . . . Parts Sabotaged . | . . . Parts Stolen . | . . . Parts Stripped . | . . . Power Chain Reactions . | . . . Missiles Intercepted . | . . . Alert | -11 -10 -9 ------- Run | Jun Mat Mat Peak Influence 194 | . 32 194 Initial 4 | . . 4 Average 54 | . 14 72 Maximum Alert Level . | . . . Low Security (%) 100 | . 100 100 Level 1 . | . . . Level 2 . | . . . Level 3 . | . . . Level 4 . | . . . Level 5 . | . . . High Security . | . . . Max Security . | . . . Squads Dispatched 1 | . 1 . Investigation . | . . . Extermination . | . . . Reinforcement 1 | . 1 . Assault . | . . . Garrison . | . . . Intercept . | . . . Searches Triggered . | . . . Construction Impeded . | . . . Haulers Reinforced . | . . . Active Scanning Responses . | . . . Cargo Convoy Interrupts . | . . . Stealth | -11 -10 -9 --------- Run | Jun Mat Mat Distress Signals 1 | . . 1 Communications Jammed . | . . . Distress Signals . | . . . Times Spotted 28 | . 5 23 Peak Tracking Total 18 | . 3 18 Tactical Retreats 4 | . . 4 Traps | -11 -10 -9 ------- Run | Jun Mat Mat Traps Triggered 4 | . 3 1 Indirectly . | . . . Trap Hack Attempts . | . . . Triggered . | . . . Disarmed . | . . . Reprogrammed . | . . . Reused . | . . . Traps Extracted . | . . . Installed . | . . . Triggered . | . . . Machines | -11 -10 -9 ---------- Run | Jun Mat Mat Machines Disabled 1 | . 1 . Max in Single Turn 1 | . 1 . Machines Repaired . | . . . Machines Sabotaged . | . . . Overloaded Fab Kills . | . . . Hacking | -11 -10 -9 --------- Run | Jun Mat Mat Machines Accessed 4 | . 2 2 Terminals 4 | . 2 2 Fabricators . | . . . Repair Stations . | . . . Recycling Units . | . . . Scanalyzers . | . . . Garrison Access . | . . . Total Hacks 14 | . 8 6 Successful 6 | . 5 1 Failed 8 | . 3 5 Catastrophic 3 | . 1 2 Database Lockouts . | . . . Manual 10 | . 8 2 Terminals 14 | . 8 6 Fabricators . | . . . Repair Stations . | . . . Recycling Units . | . . . Scanalyzers . | . . . Garrison Access . | . . . Terminal Hacks 3 | . 3 . Level Access Points 1 | . 1 . Terminal Index 1 | . 1 . Zone Layout 1 | . 1 . Fabricator Hacks . | . . . Repair Station Hacks . | . . . Recycling Unit Hacks . | . . . Scanalyzer . | . . . Garrison Access Hacks . | . . . Unauthorized Hacks 3 | . 2 1 Terminals 3 | . 2 1 Botnet 3 | . 2 1 Fabricators . | . . . Repair Stations . | . . . Recycling Units . | . . . Scanalyzers . | . . . Garrison Access . | . . . Data Cores Recovered . | . . . Used . | . . . Hacking Detections 4 | . 2 2 Full Trace Events 1 | . . 1 Feedback Events . | . . . Feedback Blocked . | . . . Robot Schematics Acquired . | . . . Robots Built . | . . . Authchips . | . . . Time . | . . . Total Robot Build Rating . | . . . Part Schematics Acquired . | . . . Parts Built . | . . . Authchips . | . . . Time . | . . . Total Part Build Rating . | . . . Parts Repaired . | . . . Time . | . . . Parts Recycled . | . . . Recycled Matter . | . . . Retrieved Matter . | . . . Retrieved Components . | . . . Parts Scanalyzed . | . . . Part Schematics Acquired . | . . . Parts Damaged . | . . . Bothacking | -11 -10 -9 ------------ Run | Jun Mat Mat Used RIF Installer . | . . . Robots Hacked . | . . . Non-combat . | . . . Combat . | . . . Robot Hacks Applied . | . . . Relay Couplers Released . | . . . Fabnet Peak Effective % . | . . . Robots Rewired . | . . . Allies Hacked . | . . . Hacks Repelled . | . . . Allies | -11 -10 -9 -------- Run | Jun Mat Mat Total Allies . | . . . Largest Group . | . . . Highest-Rated Group . | . . . Highest-Rated Ally . | . . . Total Orders . | . . . Ally Attacks . | . . . Total Damage . | . . . Kills . | . . . Allies Corrupted . | . . . Allies Melted . | . . . Intel | -11 -10 -9 ------- Run | Jun Mat Mat Robot Analysis Total . | . . . Derelict Logs Recovered . | . . . Drone Launches . | . . . Drone Recoveries . | . . . Exploration | -11 -10 -9 ------------- Run | Jun Mat Mat Turns Passed 283 | . 90 193 Spaces Moved 489 | 1 100 388 Core 27 | . . 27 Treads . | . . . Legs 1 | 1 . . Wheels 100 | . 100 . Hover 15 | . . 15 Flight 346 | . . 346 Fastest Speed 34 | 120 80 34 Average Speed 50 | 120 80 42 Slowest Speed 120 | 120 80 120 Overloaded Moves . | . . . Propulsion Burnouts . | . . . Robots Hopped 10 | . . 10 Cave-ins Triggered . | . . . Exploration Rate (%) 24 | 2 26 45 Regions Visited 2 Branch Regions . Pre-discovered Areas . | . . . Known Exits Taken 1 | . 1 . Unknown Exits Taken 1 | 1 . . Scrap Searched . | . . . Spaces Dug . | . . . Terrain Destroyed . | . . . Melee . | . . . Projectile . | . . . AOE . | . . . Terrain Rammed . | . . . Walls Destroyed . | . . . Machines Disabled . | . . . Actions | -11 -10 -9 --------- Run | Jun Mat Mat Total 511 | . 106 405 Wait 2 | . . 2 Move 467 | . 99 368 Hop 10 | . . 10 Pick Up 8 | . 3 5 Fast Attach 4 | . . 4 Attach 4 | . 1 3 Detach 1 | . . 1 Swap 5 | . 2 3 Drop 5 | . . 5 Fire 1 | . 1 . Melee . | . . . Ram 4 | . . 4 Kick . | . . . Crush . | . . . Escape Stasis . | . . . Rewire . | . . . Trap . | . . . Miscellaneous . | . . . Route ------- -11/Junkyard -10/Materials (discovered 3 exits: *Mat x3) -9/Materials (discovered 1 exit: [*Min]) History --------- Turn | Location | Event 1 | -11/Junkyard | Discovered new exit (range 0) 1 | -11/Junkyard | Entered Materials 38 | -10/Materials | Identified exit to Materials 91 | -10/Materials | Entered another Materials area 91 | -9/Materials | Evolved 2 slots: Propulsion x1, Utility x1 194 | -9/Materials | Discovered new exit (range 16) 264 | -9/Materials | Core integrity fell below 50% 273 | -9/Materials | Core integrity fell below 20% 284 | -9/Materials | Self-destructed Last Messages --------------- 00226_ T-07 Excavator is excavating. 00226_ K-01 Serf collects debris. 00230_ Flight Unit destroyed. 00230_ T-07 Excavator is excavating. 00244_ Material Compactor disabled. 00245_ Slammed into Y-45 Defender. 00246_ K-01 Serf collects debris. 00254_ S-10 Pest destroyed. 00254_ Imp. Hover Unit destroyed. 00257_ K-01 Serf collects debris. 00257_ Flight Unit destroyed. 00261_ K-01 Serf cleans the Fusion Modulator. 00262_ U-05 Engineer builds a Door. 00263_ Slammed into S-10 Pest. 00264_ R-06 Scavenger collects Lgt. Assault Rifle. 00264_ Slammed into Y-45 Defender. 00264_ K-01 Serf collects debris. 00266_ Critical hit (Burn: +37). 00266_ K-01 Serf destroyed. 00276_ W-16 Scout sends out distress signal. Map ----- +----------------------------------------------------+ | | | | | | | ?????????????????????????????????????????????????? | | ?????????????????????????????????????????????????? | | ?????????????????????????????????????????????????? | | ?????????????????????????????????????????????????? | | ?????????????????????????????????????????????????? | | ?????????????????????????????????????????????????? | | ?????????????????????????????????????????????????? | | ?????????????????????????#???????????????????????? | | ????????????????????????? ???????????????????????? | | ????????????????????????? ???????????????????????? | | ????????????????????????? ???????????????????????? | | ????????????????????????? ???????????????????????? | | ????????????????????????? ???????????????????????? | | ????????????????????????? ???????????????????????? | | ????????????????????????# #?##############???????? | | ????????????????????????# #?# #???????? | | ????????????????????????# #?# """ """ #???????? | | ????????????????????????# #?#| """ """ #???????? | | ????????????????????????# #?# """ """ #???????? | | ????????????????????????# #?# #???????? | | ############???????????## #########+######???????? | | #?########### ####### ###### #? | | #?# # @ # = / * T +? | | #?#""" """ # # # % ###### #? | | """ """ #?#"R """ # # """ # ! #???????????? | | """ """ #?#""" """ # # """ # #???????????? | | """ """ #?# # s # """ # #???????????? | | = #?# ] # s# """ # #???????????? | | #####+######## + r/ """ # ###########?? | | #### / # # # ## """ #?? | | # ################# ####### ## """"" #?? | | + #??????????????# t ##### % # """"" #?? | | ! # #?###??????????# # """"" #?? | | #### ## !##?????????# " "" #?? | | ### !#?????????# # ### | | !#?????????# ##### # [ + | | !#?????????#######???## ## ### | | !#????????????????????# ##[ #?? | | ### !##????????????????????# ###########?? | | ??### ######?????????????????????# #? #????? | | ????# #?????????????????????###### #? """ #????? | | ????# #?????????????????????# # """ #????? | | #####+#?????????????????????+ # """ #????? | | #?????????????????????# + #????? | | #?????????????????????# # #????? | | #?????????????????????# ## ##########??? | | #?????????????????? # "## #??? | +----------------------------------------------------+ Best States ------------- Heat Dissipation 28 Energy Generation 10 Energy Capacity 250 Matter Stores 300 Matter Capacity 300 Sight Range 16 Terrain Scan Density 10 Evasion (%) 63 Targeting Accuracy 5 Item Schematics ----------------- None Robot Schematics ------------------ None Fabricated ------------ Nothing Alien Tech Used ----------------- None Achievements -------------- None Challenges ------------ None Game ------ Seed ParticleVortexNetwork Manual? 0 Play Time 00:12:35 Cumulative 120.0 hours Start 2023.03.08 @ 11:10:23 End 2023.03.08 @ 11:19:15 Sessions 1 Manual Loads 0 Difficulty Rogue Special Mode None Game No. 182 Rogue 182 Adventurer 0 Explorer 0 Win Type - Total 2 Types 1/0/1/0/0/0/0/0/0 Lore% 49 Gallery% 58 Achievement% 50 Wizard Run 0 Options --------- ASCII 0 Keyboard 0 Movement Mouse Keybinds 0 Fullscreen 2 Font 24/Proggy Map View 113x50 Tactical HUD 1 Map Filters NONE Filters NONE Steam 1 RUN: fe71382d-10f6-447c-a141-ec998ec5853c